fUSD/lending_fUSD_20240915
["ID","MTS","AMOUNT","RATE_DAILY","PERIOD"]
[338204315,1726384289319,-500.0,0.00014085,2]
[338204316,1726384289329,-500.0,0.00014085,2]
[338204317,1726384289338,-811158.21673294,0.000142,2]
[338204318,1726384289350,-3659.42298052,0.000142,2]
[338204319,1726384289361,-931.13278959,0.000142,2]
[338204320,1726384290214,-715.36994382,0.00013535,2]
[338204321,1726384291100,-500.0,0.00012786,2]
[338204322,1726384291110,-400.0,0.00012886,2]
[338204323,1726384291122,-100.0,0.00012886,2]
[338204324,1726384291131,-358.27649239,0.00012886,2]
[338204325,1726384291147,-141.72350761,0.00012886,2]
[338204326,1726384291156,-500.0,0.00012987,2]
[338204327,1726384291166,-500.0,0.00012987,2]
[338204328,1726384291175,-500.0,0.00012987,2]
[338204329,1726384291184,-151.0,0.0001299,2]
[338204330,1726384291194,-500.0,0.0001306,2]
[338204331,1726384291203,-500.0,0.0001316,2]
[338204332,1726384291212,-500.0,0.0001316,2]
[338204333,1726384291223,-500.0,0.00013261,2]
[338204334,1726384291235,-500.0,0.00013261,2]
[338204335,1726384291244,-500.0,0.00013261,2]
[338204336,1726384291253,-350.53649239,0.00013261,2]
[338204337,1726384291283,-500.0,0.0001316,2]
[338204338,1726384291293,-149.46350761,0.00013261,2]
[338204339,1726384291302,-500.0,0.00013334,2]
[338204340,1726384291312,-146.41146442,0.00013434,2]
[338204341,1726384291323,-214.72853558,0.00013434,2]
[338204342,1726384291333,-76.31157994,0.00013434,2]
[338204343,1726384291344,-423.68842006,0.00013434,2]
[338204344,1726384291354,-129.88132123,0.00013534,2]
[338204345,1726384291366,-2942.17867877,0.00013534,2]
[338204346,1726384291376,-914.14005618,0.00013535,2]
[338204347,1726384291386,-6.87404524,0.00013535,2]
[338204348,1726384291398,-493.12595476,0.00013535,2]
[338204349,1726384291408,-500.0,0.00013535,2]
[338204350,1726384291418,-500.0,0.00013535,2]
[338204351,1726384291427,-500.0,0.00013535,2]
[338204352,1726384291437,-500.0,0.00013608,2]
[338204353,1726384291447,-407.496942,0.00013699,2]
[338204354,1726384291456,-407.496942,0.00013699,2]
[338204355,1726384291466,-407.496942,0.00013699,2]
[338204356,1726384291475,-500.0,0.00013708,2]
[338204357,1726384291485,-3072.06,0.00013808,2]
[338204358,1726384291495,-1629.51,0.00013809,2]
[338204359,1726384291504,-346.0,0.00013809,2]
[338204360,1726384291515,-500.0,0.00013809,2]
[338204361,1726384291524,-500.0,0.00013809,2]
[338204362,1726384291534,-3072.06,0.00014082,2]
[338204363,1726384291544,-1629.51,0.00014083,2]
[338204364,1726384291553,-500.0,0.00014083,2]
[338204365,1726384291563,-500.0,0.00014083,2]
[338204366,1726384291572,-249059.75100354,0.000142,2]
[338204367,1726384291583,-174057.3795909,0.000142,2]
[338204368,1726384291594,-173564.3292124,0.000142,2]
[338204369,1726384291606,-74231.45971563,0.000142,2]
[338204370,1726384291618,-44851.69624591,0.000142,2]
[338204371,1726384291632,-40637.43076967,0.000142,2]
[338204372,1726384291644,-11537.57862452,0.000142,2]
[338204373,1726384291656,-81862.22527757,0.000142,2]
[338204374,1726384291667,-12020.08085113,0.000142,2]
[338204375,1726384291679,-11753.76194839,0.000142,2]
[338204376,1726384291691,-4391.72738364,0.000142,2]
[338204377,1726384291703,-2438.53564919,0.000142,2]
[338204378,1726384291714,-1000.54103258,0.000142,2]
[338204379,1726384291726,-1580.85761632,0.000142,2]
[338204380,1726384291738,-1421.4756318,0.000142,2]
[338204381,1726384291764,-500.0,0.00013809,2]
[338204382,1726384291773,-109.53823585,0.000142,2]
[338204383,1726384291784,-1740.74654837,0.000142,2]
[338204384,1726384291795,-474.70594152,0.000142,2]
[338204385,1726384291806,-8924.9356803,0.000142,2]
[338204386,1726384291818,-430.18684934,0.000142,2]
[338204387,1726384291829,-12135.87654505,0.000142,2]
[338204388,1726384291841,-29900.94388131,0.000142,2]
[338204389,1726384291852,-3666.82998998,0.000142,2]
[338204390,1726384291875,-500.0,0.00013982,2]
[338204391,1726384291884,-7033.79919372,0.000142,2]
[338204392,1726384291896,-506.28464956,0.000142,2]
[338204393,1726384291907,-2227.32105604,0.000142,2]
[338204394,1726384291918,-22015.21942346,0.000142,2]
[338204395,1726384305200,218.5,0.00010959,2]
[338204396,1726384308017,405.21,0.00012601,2]
[338204397,1726384326506,150.0,0.00012433,2]
[338204398,1726384326532,0.95,0.00012433,2]
[338204399,1726384326724,149.05,0.00012446,2]
[338204400,1726384326749,1.9,0.00012446,2]
[338204401,1726384326945,148.1,0.00012458,2]
[338204402,1726384326968,2.85,0.00012458,2]
[338204403,1726384327152,147.15,0.00012471,2]
[338204404,1726384327176,3.8,0.00012471,2]
[338204405,1726384327350,146.2,0.00012483,2]
[338204406,1726384327374,4.75,0.00012483,2]
[338204407,1726384327556,145.25,0.00012496,2]
[338204408,1726384327580,5.7,0.00012496,2]
[338204409,1726384328925,150.0,0.00012433,2]
[338204410,1726384328947,150.0,0.00012433,2]
[338204411,1726384328969,150.0,0.00012433,2]
[338204412,1726384328991,150.0,0.00012433,2]
[338204413,1726384329014,150.0,0.00012433,2]
[338204414,1726384329037,130.0,0.00012433,2]
[338204415,1726384373172,150.0,0.00012319,2]
[338204416,1726384373193,188.10851297,0.00012319,2]
[338204417,1726384373212,150.0,0.00012319,2]
[338204418,1726384373232,150.0,0.00012319,2]
[338204419,1726384373253,150.0,0.00012319,2]
[338204420,1726384373274,150.0,0.00012319,2]
[338204421,1726384373294,150.0,0.00012319,2]
[338204422,1726384373314,60.89148703,0.00012319,2]
[338204423,1726384402897,257.90851297,0.00012224,2]
[338204424,1726384402919,150.0,0.00012224,2]
[338204425,1726384402940,150.0,0.00012224,2]
[338204426,1726384402961,150.0,0.00012224,2]
[338204427,1726384402982,150.0,0.00012224,2]
[338204428,1726384403003,150.0,0.00012224,2]
[338204429,1726384403024,150.0,0.00012224,2]
[338204430,1726384403045,150.0,0.00012224,2]
[338204431,1726384403065,105.26148703,0.00012224,2]
[338204432,1726384446679,1350.0,0.00012587,2]
[338204433,1726384447507,250.0,0.00012209,2]
[338204434,1726384451982,150.0,0.00012223,2]
[338204435,1726384452004,150.0,0.00012223,2]
[338204436,1726384452025,150.0,0.00012223,2]
[338204437,1726384452046,150.0,0.00012223,2]
[338204438,1726384452067,150.0,0.00012223,2]
[338204439,1726384452088,150.0,0.00012223,2]
[338204440,1726384452109,103.94321341,0.00012223,2]
[338204441,1726384574020,46.05678659,0.00011164,2]
[338204442,1726384574041,150.0,0.00011164,2]
[338204443,1726384574062,150.0,0.00011164,2]
[338204444,1726384574083,150.0,0.00011164,2]
[338204445,1726384574103,3.94321341,0.00011164,2]
[338204446,1726384587049,146.05678659,0.00010247,2]
[338204447,1726384587072,165.46321341,0.00010247,2]
[338204448,1726384587283,71.54066028,0.00012511,2]
[338204449,1726384587310,239.97933972,0.00012511,2]
[338204450,1726384631135,1529.6,0.00012128,2]
[338204451,1726384669905,156.84,0.00012128,2]
[338204452,1726384706730,794.68,0.00012225,2]
[338204453,1726384739151,250.0,0.00012127,2]
[338204454,1726384758451,327.18,0.00012102,2]
[338204455,1726384775419,701.75,0.00012227,2]
[338204456,1726384813543,5790.5417,0.00012587,2]
[338204457,1726384819366,273.92,0.0001197,2]
[338204458,1726384843653,219.15,0.00010959,2]
[338204459,1726384866898,1050.0,0.00012054,2]
[338204460,1726384886590,706.58,0.00012024,2]
[338204461,1726384888972,150.0,0.00012024,2]
[338204462,1726384889185,150.0,0.00012031,2]
[338204463,1726384889422,150.0,0.00012039,2]
[338204464,1726384889660,150.0,0.00012046,2]
[338204465,1726384890019,150.0,0.00012054,2]
[338204466,1726384890222,150.0,0.00012061,2]
[338204467,1726384890441,150.0,0.00012069,2]
[338204468,1726384890657,150.0,0.00012076,2]
[338204469,1726384890849,150.0,0.00012084,2]
[338204470,1726384952322,236.15,0.00012023,2]
[338204471,1726385036175,541.6,0.00010959,2]
[338204472,1726385066524,500.0,0.00011164,2]
[338204473,1726385072800,1000.0,0.0001203,2]
[338204474,1726385129718,28265.69254586,0.000101,2]
[338204475,1726385133032,250.0,0.0001203,2]
[338204476,1726385140465,150.0,0.00011984,2]
[338204477,1726385153906,339.1,0.00010084,2]
[338204478,1726385154127,339.1,0.00012348,2]
[338204479,1726385156748,156.84,0.00011985,2]
[338204480,1726385279942,151.42227308,0.00012,2]
[338204486,1726385383151,184.03,0.00011969,2]
[338204488,1726385403469,8633.80475312,0.00011863,2]
[338204489,1726385403774,5000.0,0.00011863,2]
[338204490,1726385404123,5000.0,0.00011863,2]
[338204491,1726385409830,353.29,0.00011988,2]
[338204492,1726385410476,5000.0,0.00011863,2]
[338204498,1726385431620,-150.0,0.00012673,2]
[338204499,1726385431630,-419.4074441,0.00012674,2]
[338204500,1726385431752,-580.5925559,0.00012674,2]
[338204501,1726385431762,-1000.0,0.00012674,2]
[338204502,1726385431772,-1000.0,0.00012674,2]
[338204503,1726385431782,-124.89797763,0.00012674,2]
[338204504,1726385431794,-875.10202237,0.00012674,2]
[338204505,1726385431803,-1000.0,0.00012674,2]
[338204506,1726385431812,-1000.0,0.00012674,2]
[338204507,1726385431822,-2000.0,0.00012674,2]
[338204508,1726385431832,-1000.0,0.00012675,2]
[338204509,1726385431841,-1000.0,0.00012675,2]
[338204510,1726385431850,-1000.0,0.00012675,2]
[338204511,1726385431860,-1000.0,0.00012675,2]
[338204512,1726385431869,-1000.0,0.00012675,2]
[338204513,1726385431879,-1000.0,0.00012675,2]
[338204514,1726385431888,-1000.0,0.00012675,2]
[338204515,1726385431897,-1000.0,0.00012675,2]
[338204516,1726385431907,-303.03020671,0.00012675,2]
[338204517,1726385431916,-7690.0,0.00012679,2]
[338204518,1726385431926,-962.1836,0.00012685,2]
[338204519,1726385431936,-237.45,0.00012685,2]
[338204520,1726385431945,-345.36063455,0.00012685,2]
[338204521,1726385431954,-299.99,0.00012686,2]
[338204522,1726385431964,-16710.2738,0.00012687,2]
[338204523,1726385431973,-1240.9058,0.00012687,2]
[338204524,1726385431983,-3359.4329,0.00012687,2]
[338204525,1726385431992,-482.55343431,0.00012727,2]
[338204526,1726385432002,-150.95,0.00012776,2]
[338204527,1726385432011,-2138.43,0.00012784,2]
[338204528,1726385432021,-2658.57,0.00012784,2]
[338204529,1726385432031,-2335.82,0.00012784,2]
[338204530,1726385432041,-596.47,0.00012784,2]
[338204531,1726385432050,-3183.61,0.00012784,2]
[338204532,1726385432060,-1010.08,0.00012784,2]
[338204533,1726385432069,-2045.37,0.00012784,2]
[338204534,1726385432079,-2571.45,0.00012784,2]
[338204535,1726385432088,-1948.56,0.00012784,2]
[338204536,1726385432097,-7910.93,0.00012784,2]
[338204537,1726385432107,-3684.86,0.00012784,2]
[338204538,1726385432116,-2053.14,0.00012784,2]
[338204539,1726385432126,-842.99,0.00012784,2]
[338204540,1726385432136,-2229.18,0.00012784,2]
[338204541,1726385432145,-500.0,0.00012784,2]
[338204542,1726385432155,-392.42528018,0.00012784,2]
[338204543,1726385432164,-1162.01,0.00012784,2]
[338204544,1726385432175,-604.18,0.00012784,2]
[338204545,1726385432185,-1280.53979914,0.00012784,2]
[338204546,1726385432217,-254.61020086,0.00012784,2]
[338204547,1726385432227,-500.0,0.00012784,2]
[338204548,1726385432236,-500.0,0.00012784,2]
[338204549,1726385432245,-1194.27,0.00012784,2]
[338204550,1726385432255,-697.39,0.00012784,2]
[338204551,1726385432264,-751.40579967,0.00012785,2]
[338204552,1726385432276,-63.27420033,0.00012785,2]
[338204553,1726385432285,-500.0,0.00012785,2]
[338204554,1726385432295,-500.0,0.00012785,2]
[338204555,1726385432304,-393.51635058,0.00012785,2]
[338204556,1726385437653,-285.763033,0.00012784,2]
[338204557,1726385437664,-658.926967,0.00012784,2]
[338204558,1726385437673,-90.94180571,0.00012784,2]
[338204559,1726385437689,-409.05819429,0.00012784,2]
[338204560,1726385437699,-254.14180571,0.00012784,2]
[338204561,1726385437711,-1281.71819429,0.00012784,2]
[338204562,1726385437720,-637.64364942,0.00012785,2]
[338204563,1726385437729,-500.0,0.00012785,2]
[338204564,1726385437738,-219.93165421,0.00012785,2]
[338204565,1726385437747,-2091.4,0.00012785,2]
[338204566,1726385437756,-500.0,0.00012785,2]
[338204567,1726385437765,-675.28,0.00012785,2]
[338204568,1726385437775,-282.61224878,0.00012785,2]
[338204569,1726385437784,-500.0,0.00012785,2]
[338204570,1726385437793,-1850.17,0.00012785,2]
[338204571,1726385437802,-1888.27,0.00012785,2]
[338204572,1726385437811,-500.0,0.00012785,2]
[338204573,1726385437820,-2756.76,0.00012785,2]
[338204574,1726385437829,-1274.07,0.00012785,2]
[338204575,1726385437838,-1475.85,0.00012785,2]
[338204576,1726385437852,-708.0,0.00012785,2]
[338204577,1726385437862,-3517.79,0.00012785,2]
[338204578,1726385437871,-345.15269746,0.00012785,2]
[338204579,1726385437880,-1642.88,0.00012785,2]
[338204580,1726385437889,-1592.47,0.00012785,2]
[338204581,1726385437898,-855.15,0.00012785,2]
[338204582,1726385437907,-2098.56,0.00012785,2]
[338204583,1726385437918,-1235.16,0.00012785,2]
[338204584,1726385437927,-500.0,0.00012785,2]
[338204585,1726385437937,-500.0,0.00012785,2]
[338204586,1726385437946,-589.0,0.00012785,2]
[338204587,1726385437957,-706.52,0.00012785,2]
[338204588,1726385437966,-500.0,0.00012785,2]
[338204589,1726385437976,-756.35,0.00012785,2]
[338204590,1726385437985,-500.0,0.00012785,2]
[338204591,1726385437994,-651.27,0.00012785,2]
[338204592,1726385438005,-500.0,0.00012785,2]
[338204593,1726385438014,-508.14854117,0.00012785,2]
[338204594,1726385438023,-662.55,0.00012785,2]
[338204595,1726385438032,-500.0,0.00012785,2]
[338204596,1726385438042,-666.62,0.00012785,2]
[338204597,1726385438051,-1823.98,0.00012785,2]
[338204598,1726385438060,-500.0,0.00012785,2]
[338204599,1726385438070,-517.71,0.00012785,2]
[338204600,1726385438079,-500.0,0.00012785,2]
[338204601,1726385438089,-500.0,0.00012785,2]
[338204602,1726385438099,-1798.63,0.00012785,2]
[338204603,1726385438110,-500.0,0.00012785,2]
[338204604,1726385438121,-500.0,0.00012785,2]
[338204605,1726385438130,-2349.26,0.00012785,2]
[338204606,1726385438140,-500.0,0.00012785,2]
[338204607,1726385438150,-2003.59,0.00012785,2]
[338204608,1726385438159,-500.0,0.00012785,2]
[338204609,1726385438168,-523.29,0.00012785,2]
[338204610,1726385438178,-602.83,0.00012785,2]
[338204611,1726385438187,-500.0,0.00012785,2]
[338204612,1726385438197,-2262.71,0.00012785,2]
[338204613,1726385438206,-1160.9,0.00012785,2]
[338204614,1726385438215,-500.0,0.00012785,2]
[338204615,1726385438225,-500.0,0.00012785,2]
[338204616,1726385438235,-1857.41,0.00012785,2]
[338204617,1726385438244,-2190.09,0.00012785,2]
[338204618,1726385438255,-500.0,0.00012785,2]
[338204619,1726385438264,-686.88,0.00012785,2]
[338204620,1726385438273,-500.0,0.00012785,2]
[338204621,1726385438282,-970.43,0.00012785,2]
[338204622,1726385438292,-570.47405494,0.00012785,2]
[338204623,1726385438302,-414.52934539,0.00012785,2]
[338204624,1726385438314,-1198.91,0.00012785,2]
[338204625,1726385438324,-2985.43,0.00012785,2]
[338204626,1726385438333,-500.0,0.00012785,2]
[338204627,1726385438342,-500.0,0.00012785,2]
[338204628,1726385438351,-500.0,0.00012785,2]
[338204629,1726385438360,-763.17,0.00012785,2]
[338204652,1726385438589,-2409.93,0.00012785,2]
[338204654,1726385438607,-1869.63,0.00012785,2]
[338204656,1726385438616,-422.55317321,0.00012785,2]
[338204710,1726385439158,-77.44682679,0.00012785,2]
[338204712,1726385439168,-500.0,0.00012785,2]
[338204714,1726385439177,-500.0,0.00012785,2]
[338204716,1726385439189,-1575.05,0.00012785,2]
[338204718,1726385439198,-760.03,0.00012785,2]
[338204720,1726385439207,-500.0,0.00012785,2]
[338204722,1726385439216,-2700.38,0.00012785,2]
[338204724,1726385439226,-1939.71,0.00012785,2]
[338204725,1726385439235,-500.0,0.00012785,2]
[338204727,1726385439244,-1297.78,0.00012785,2]
[338204729,1726385439253,-1080.83,0.00012785,2]
[338204731,1726385439263,-3525.13,0.00012785,2]
[338204733,1726385439272,-1426.6,0.00012785,2]
[338204735,1726385439282,-1142.66,0.00012785,2]
[338204737,1726385439291,-1360.16,0.00012785,2]
[338204738,1726385439300,-500.0,0.00012785,2]
[338204740,1726385439309,-5808.79,0.00012785,2]
[338204742,1726385439318,-8902.2,0.00012785,2]
[338204744,1726385439327,-675.76,0.00012785,2]
[338204746,1726385439336,-776.98,0.00012785,2]
[338204748,1726385439345,-2332.1,0.00012785,2]
[338204750,1726385439355,-9065.67,0.00012785,2]
[338204752,1726385439364,-37204.27,0.00012785,2]
[338204754,1726385439373,-922.67,0.00012785,2]
[338204755,1726385439382,-6404.56,0.00012785,2]
[338204757,1726385439391,-500.0,0.00012785,2]
[338204759,1726385439401,-500.0,0.00012785,2]
[338204761,1726385439410,-2231.85,0.00012785,2]
[338204763,1726385439419,-2787.55,0.00012785,2]
[338204765,1726385439428,-1174.42,0.00012785,2]
[338204767,1726385439438,-637.63,0.00012785,2]
[338204768,1726385439447,-2175.8,0.00012785,2]
[338204770,1726385439456,-2000.75,0.00012785,2]
[338204772,1726385439465,-1128.47,0.00012785,2]
[338204774,1726385439474,-4649.97,0.00012785,2]
[338204776,1726385439483,-5040.57,0.00012785,2]
[338204778,1726385439492,-900.14,0.00012785,2]
[338204780,1726385439502,-1334.71,0.00012785,2]
[338204781,1726385439511,-500.0,0.00012785,2]
[338204783,1726385439520,-1396.47,0.00012785,2]
[338204785,1726385439529,-500.0,0.00012785,2]
[338204787,1726385439538,-1739.13,0.00012785,2]
[338204789,1726385439547,-2482.21,0.00012785,2]
[338204791,1726385439556,-500.0,0.00012785,2]
[338204793,1726385439565,-6630.59,0.00012785,2]
[338204795,1726385439574,-672.58,0.00012785,2]
[338204797,1726385439583,-500.0,0.00012785,2]
[338204798,1726385439593,-1220.89,0.00012785,2]
[338204800,1726385439602,-849.62,0.00012785,2]
[338204802,1726385439612,-1665.46,0.00012785,2]
[338204804,1726385439621,-1271.35,0.00012785,2]
[338204806,1726385439630,-4065.05662321,0.00012785,2]
[338204808,1726385439646,-1485.18337679,0.00012785,2]
[338204810,1726385439656,-429.9666232,0.00012785,2]
[338204813,1726385439667,-158.5633768,0.00012785,2]
[338204815,1726385439676,-282.14814281,0.00012785,2]
[338204817,1726385439688,-217.85185719,0.00012785,2]
[338204819,1726385439697,-146.14814281,0.00012785,2]
[338204821,1726385439708,-470.83343635,0.00012785,2]
[338204824,1726385439729,-154.84842084,0.00012785,2]
[338204826,1726385439738,-225.15157916,0.00012785,2]
[338204829,1726385439754,-1319.52842084,0.00012785,2]
[338204831,1726385439764,-2198.68,0.00012785,2]
[338204833,1726385439773,-955.86,0.00012785,2]
[338204835,1726385439783,-500.0,0.00012785,2]
[338204837,1726385439792,-67.53157916,0.00012785,2]
[338204850,1726385439907,-432.46842084,0.00012785,2]
[338204852,1726385439917,-3985.9,0.00012785,2]
[338204854,1726385439926,-757.94,0.00012785,2]
[338204856,1726385439936,-1775.28,0.00012785,2]
[338204858,1726385439945,-500.0,0.00012785,2]
[338204860,1726385439954,-500.0,0.00012785,2]
[338204862,1726385439963,-1985.12,0.00012785,2]
[338204863,1726385439972,-500.0,0.00012785,2]
[338204864,1726385439983,-1179.91,0.00012785,2]
[338204865,1726385439992,-500.0,0.00012785,2]
[338204866,1726385440001,-500.0,0.00012785,2]
[338204867,1726385440010,-610.18,0.00012785,2]
[338204868,1726385440019,-2105.61,0.00012785,2]
[338204869,1726385440029,-781.09,0.00012785,2]
[338204870,1726385440038,-1790.64,0.00012785,2]
[338204871,1726385440048,-1962.82,0.00012785,2]
[338204872,1726385440057,-500.0,0.00012785,2]
[338204873,1726385440066,-819.5,0.00012785,2]
[338204874,1726385440076,-3220.08,0.00012785,2]
[338204875,1726385440086,-7056.38,0.00012785,2]
[338204876,1726385440096,-500.0,0.00012785,2]
[338204877,1726385440106,-3201.66,0.00012785,2]
[338204878,1726385440116,-3631.65,0.00012785,2]
[338204879,1726385440125,-2475.1,0.00012785,2]
[338204880,1726385440134,-500.0,0.00012785,2]
[338204881,1726385440144,-769.89,0.00012785,2]
[338204882,1726385440154,-3967.45,0.00012785,2]
[338204883,1726385440163,-2071.6,0.00012785,2]
[338204884,1726385440173,-2498.85,0.00012785,2]
[338204885,1726385440183,-2726.91,0.00012785,2]
[338204886,1726385440193,-2743.08,0.00012785,2]
[338204887,1726385440203,-13172.05,0.00012785,2]
[338204888,1726385440212,-1120.76,0.00012785,2]
[338204889,1726385440221,-602.83,0.00012785,2]
[338204890,1726385440231,-500.0,0.00012785,2]
[338204891,1726385440240,-362.46129892,0.00012785,2]
[338204892,1726385440249,-1904.52,0.00012785,2]
[338204893,1726385440259,-41079.93,0.00012785,2]
[338204894,1726385440268,-500.0,0.00012785,2]
[338204895,1726385440278,-953.92,0.00012785,2]
[338204896,1726385440287,-500.0,0.00012785,2]
[338204897,1726385440297,-2838.42,0.00012785,2]
[338204898,1726385440306,-1008.15,0.00012785,2]
[338204899,1726385440316,-500.0,0.00012786,2]
[338204900,1726385440325,-2901.35,0.00012786,2]
[338204901,1726385440335,-727.38,0.00012786,2]
[338204902,1726385440344,-1797.0,0.00012786,2]
[338204903,1726385440354,-500.0,0.00012786,2]
[338204904,1726385440363,-3574.44,0.00012786,2]
[338204905,1726385440373,-3090.98,0.00012786,2]
[338204907,1726385440382,-2181.21,0.00012786,2]
[338204909,1726385440391,-2473.67,0.00012786,2]
[338204910,1726385440401,-2244.94,0.00012786,2]
[338204911,1726385440410,-2253.4,0.00012786,2]
[338204912,1726385440419,-500.0,0.00012786,2]
[338204913,1726385440428,-1564.27,0.00012786,2]
[338204914,1726385440439,-293.29089475,0.00012786,2]
[338204915,1726385440449,-626.69,0.00012786,2]
[338204916,1726385440458,-2295.46,0.00012786,2]
[338204917,1726385440467,-1388.89,0.00012786,2]
[338204918,1726385440477,-500.0,0.00012786,2]
[338204919,1726385440486,-1000.0,0.00012786,2]
[338204920,1726385440495,-2007.97,0.00012786,2]
[338204921,1726385440505,-1221.49,0.00012786,2]
[338204922,1726385440514,-500.0,0.00012786,2]
[338204923,1726385440524,-506.66,0.00012786,2]
[338204924,1726385440534,-2137.27,0.00012786,2]
[338204925,1726385440543,-2240.36,0.00012786,2]
[338204926,1726385440551,-500.0,0.00012786,2]
[338204927,1726385440561,-1332.56,0.00012786,2]
[338204928,1726385440570,-500.0,0.00012786,2]
[338204929,1726385440579,-1914.56,0.00012786,2]
[338204931,1726385440589,-2275.26,0.00012786,2]
[338204933,1726385440597,-500.0,0.00012786,2]
[338204935,1726385440607,-500.0,0.00012786,2]
[338204937,1726385440616,-1554.97,0.00012786,2]
[338204938,1726385440625,-2425.65,0.00012786,2]
[338204940,1726385440634,-1570.02,0.00012786,2]
[338204942,1726385440644,-855.58,0.00012786,2]
[338204944,1726385440653,-3951.81,0.00012786,2]
[338204947,1726385440663,-241.37422192,0.00012786,2]
[338204949,1726385440672,-1785.93,0.00012786,2]
[338204950,1726385440683,-1091.49,0.00012786,2]
[338204953,1726385440692,-1193.6,0.00012786,2]
[338204954,1726385440702,-1680.24,0.00012786,2]
[338204956,1726385440711,-1960.38,0.00012786,2]
[338204958,1726385440720,-1024.46,0.00012786,2]
[338204960,1726385440729,-1748.33,0.00012786,2]
[338204962,1726385440739,-1646.65,0.00012786,2]
[338204964,1726385440748,-1258.22,0.00012786,2]
[338204965,1726385440758,-1192.83,0.00012786,2]
[338204967,1726385440767,-738.73,0.00012786,2]
[338204969,1726385440776,-1474.5,0.00012786,2]
[338204971,1726385440785,-500.0,0.00012786,2]
[338204973,1726385440794,-3361.77,0.00012786,2]
[338204975,1726385440803,-603.96,0.00012786,2]
[338204977,1726385440812,-3765.68,0.00012786,2]
[338204978,1726385440822,-1358.47,0.00012786,2]
[338204980,1726385440831,-500.0,0.00012786,2]
[338204982,1726385440840,-2242.29,0.00012786,2]
[338204984,1726385440852,-38171.62,0.00012786,2]
[338204986,1726385440862,-775.04,0.00012786,2]
[338204988,1726385440871,-1051.81,0.00012786,2]
[338204990,1726385440880,-1862.82,0.00012786,2]
[338204992,1726385440891,-2994.99,0.00012786,2]
[338204994,1726385440900,-2898.54,0.00012786,2]
[338204996,1726385440909,-1746.19,0.00012786,2]
[338204998,1726385440918,-1390.07,0.00012786,2]
[338205000,1726385440929,-2312.18,0.00012786,2]
[338205002,1726385440940,-3070.43,0.00012786,2]
[338205003,1726385440949,-696.35,0.00012786,2]
[338205005,1726385440959,-753.68,0.00012786,2]
[338205007,1726385440968,-683.07,0.00012786,2]
[338205009,1726385440977,-500.0,0.00012786,2]
[338205011,1726385440987,-589.28,0.00012786,2]
[338205013,1726385440996,-740.02,0.00012786,2]
[338205015,1726385441005,-1600.08,0.00012786,2]
[338205017,1726385441014,-1586.26,0.00012786,2]
[338205019,1726385441024,-5313.91,0.00012786,2]
[338205021,1726385441033,-500.0,0.00012786,2]
[338205023,1726385441042,-869.71,0.00012786,2]
[338205025,1726385441051,-22253.24,0.00012786,2]
[338205027,1726385441061,-785.67,0.00012786,2]
[338205029,1726385441070,-2759.54,0.00012786,2]
[338205031,1726385441080,-4139.0,0.00012786,2]
[338205032,1726385441089,-500.0,0.00012786,2]
[338205034,1726385441098,-602.46,0.00012786,2]